Workbook

Sheet Лист1
H1: к постановлению Администрации Североуральского городского округа от 12.11.2019 № 1225
H2: Приложение № 2 к муниципальной программе Североуральского городского округа «Развитие жилищно-коммунального хозяйства и транспортного обслуживания населения, повышение энергетической эффективности и охрана окружающей среды в Североуральском городском округе» 2014 - 2021 годы
A3: План мероприятий
A4: по выполнению муниципальной программы Североуральского городского округа
A5: «Развитие жилищно-коммунального хозяйства и транспортного обслуживания населения,
A6: повышение энергетической эффективности и охрана окружающей среды в Североуральском городском округе» 2014 - 2021 годы
A9: № строки | B9: Наименование мероприятия/ Источники расходов на финансирование | C9: Объем расходов на выполнение мероприятия за счет всех источников ресурсного обеспечения, тыс. руб. | L9: Номер строки целевых показателей, на достижение которых направлены мероприятия
C10: Всего | D10: 2014 год | E10: 2015 год | F10: 2016 год | G10: 2017 год | H10: 2018 год | I10: 2019 год | J10: 2020 год | K10: 2021 год
B11: 1 | C11: 2 | D11: 3 | E11: 4 | F11: 5 | G11: 6 | H11: 7 | I11: 8 | J11: 9 | K11: 10 | L11: 11
A12: 1 | B12: ВСЕГО по муниципальной программе, в том числе: | C12: =SUM(C13+C16+C17) -> 1313640.865 | D12: =SUM(D13+D16+D17) -> 283826.9 | E12: 348239.16 | F12: 216622.5876 | G12: 122867.7562 | H12: 94174.4444 | I12: 119532.1167 | J12: 62498.6 | K12: 65879.3 | L12: Х
A13: =SUM(A12+1) -> 2 | B13: местный бюджет, в т.ч.: | C13: =SUM(D13:K13) -> 765262.1563 | D13: =SUM(D14:D15) -> 92792.8 | E13: 126635.26 | F13: 117147.5734 | G13: 96239.06172 | H13: 92906.1444 | I13: 113065.2167 | J13: 61544.2 | K13: 64931.9
A14: =SUM(A13+1) -> 3 | B14: - местный бюджет | C14: =SUM(D14:K14) -> 765066.8907 | D14: =SUM(D19+D24) -> 92792.8 | E14: 126635.26 | F14: 117147.5734 | G14: 96043.79612 | H14: 92906.1444 | I14: 113065.2167 | J14: 61544.2 | K14: 64931.9
A15: 4 | B15: - средства заинтересованных лиц | C15: =SUM(D15:K15) -> 195.2656 | D15: =SUM(D25) -> 0 | E15: 0 | F15: 0 | G15: 195.2656 | H15: 0 | I15: 0 | J15: 0 | K15: 0
A16: 5 | B16: областной бюджет | C16: =SUM(D16:K16) -> 345290.5481 | D16: =SUM(D20+D26) -> 109216.1 | E16: 135104.3 | F16: 81477.35126 | G16: 9855.79685 | H16: 1268.3 | I16: 6466.9 | J16: 954.4 | K16: 947.4
A17: 6 | B17: федеральный бюджет | C17: =SUM(D17:K17) -> 203088.1605 | D17: =SUM(D27+D21) -> 81818 | E17: 86499.6 | F17: 17997.66293 | G17: 16772.89759 | H17: 0 | I17: 0 | J17: 0 | K17: 0
A18: 7 | B18: Капитальные вложения | C18: =SUM(C19:C21) -> 684946.8126 | D18: =SUM(D19:D21) -> 232761.9 | E18: =SUM(E19:E21) -> 271669 | F18: 133207.8847 | G18: 16137.35632 | H18: 0 | I18: 31170.67153 | J18: 0 | K18: 0 | L18: Х
A19: 8 | B19: местный бюджет | C19: =SUM(D19:K19) -> 164748.7288 | D19: =D35+D138+D222+D242+D273+D308+D377+D399 -> 44727.8 | E19: =E35+E138+E222+E242+E273+E308+E377+E399 -> 50411.3 | F19: =F35+F138+F222+F242+F273+F308+F377+F399 -> 34707.97051 | G19: =G35+G138+G222+G242+G273+G308+G377+G399+G436 -> 7324.68673 | H19: =H35+H138+H222+H242+H273+H308+H377+H399 -> 0 | I19: =I35+I138+I222+I242+I273+I308+I377+I399 -> 27576.97153 | J19: =J35+J138+J222+J242+J273+J308+J377+J399 -> 0 | K19: =K35+K138+K222+K242+K273+K308+K377+K399 -> 0
A20: 9 | B20: областной бюджет | C20: =SUM(D20:K20) -> 332741.8133 | D20: =D139+D243+D36 -> 106216.1 | E20: =E139+E243+E36 -> 134758.1 | F20: =F139+F243 -> 80502.25126 | G20: 7671.662 | H20: 0 | I20: 3593.7 | J20: 0 | K20: 0
A21: 10 | B21: федеральный бюджет | C21: =SUM(D21:K21) -> 187456.2705 | D21: =D244 -> 81818 | E21: =E244 -> 86499.6 | F21: 17997.66293 | G21: 1141.00759 | H21: 0 | I21: 0 | J21: 0 | K21: 0
A22: 11 | B22: Прочие нужды | C22: =SUM(C27+C26+C23) -> 628694.0523 | D22: =SUM(D23:D26) -> 99130 | E22: =SUM(E23:E26) -> 152794.12 | F22: =SUM(F23:F26) -> 165854.3058 | G22: =SUM(G27+G26+G23) -> 106730.3998 | H22: =SUM(H27+H26+H23) -> 94174.4444 | I22: =SUM(I27+I26+I23) -> 88361.44522 | J22: =SUM(J27+J26+J23) -> 62498.6 | K22: =SUM(K27+K26+K23) -> 65879.3 | L22: Х
A23: 12 | B23: местный бюджет, в т.ч.: | C23: =SUM(D23:K23) -> 600513.4275 | D23: =D50+D188+D231+D260+D317+D386+D415+D282+D368 -> 48065 | E23: =E50+E188+E231+E260+E317+E386+E415+E282+E368 -> 76223.96 | F23: =F50+F188+F231+F260+F317+F386+F415+F282+F368 -> 82439.60288 | G23: =SUM(G24:G25) -> 88914.37499 | H23: =H50+H188+H231+H260+H317+H386+H415+H282+H368 -> 92906.1444 | I23: =I50+I188+I231+I260+I317+I386+I415+I282+I368 -> 85488.24522 | J23: =J50+J188+J231+J260+J317+J386+J415+J282+J368 -> 61544.2 | K23: =K50+K188+K231+K260+K317+K386+K415+K282+K368 -> 64931.9
A24: 13 | B24: - местный бюджет | C24: =SUM(C50+C188+C231+C260+C282+C317+C368+C386+C415+C452) -> 600318.1619 | D24: 48065 | E24: 76223.96 | F24: 82439.60288 | G24: 88719.10939 | H24: 92906.1444 | I24: 85488.24522 | J24: 61544.2 | K24: 64931.9
A25: 14 | B25: - средства заинтересованных лиц | C25: =SUM(D25:K25) -> 195.2656 | D25: =SUM(D453) -> 0 | E25: 0 | F25: 0 | G25: 195.2656 | H25: 0 | I25: 0 | J25: 0 | K25: 0
A26: 15 | B26: областной бюджет | C26: =SUM(D26:K26) -> 12548.73485 | D26: =SUM(D189+D414+D51+D283+D454) -> 3000 | E26: 346.2 | F26: 975.1 | G26: 2184.13485 | H26: 1268.3 | I26: 2873.2 | J26: 954.4 | K26: 947.4
A27: 16 | B27: федеральный бюджет | C27: =SUM(D27:K27) -> 15631.89 | D27: 0 | E27: =E189 -> 0 | F27: =F189 -> 0 | G27: =SUM(G455) -> 15631.89 | H27: =SUM(H455) -> 0 | I27: =SUM(I455) -> 0 | J27: =SUM(J455) -> 0 | K27: =SUM(K455) -> 0
A28: 17 | B28: Подпрограмма 1: Комплексное благоустройство территории Североуральского городского округа
A29: 18 | B29: Всего по подпрограмме 1, | C29: =SUM(C31+C32) -> 274049.1356 | D29: =SUM(D31:D32) -> 25725.2 | E29: 29762.2 | F29: 47222.84145 | G29: 35527.97723 | H29: 38623.97458 | I29: 37122.14238 | J29: 30035.9 | K29: =SUM(K31:K32) -> 30028.9 | L29: Х
A30: 19 | B30: в том числе:
A31: 20 | B31: местный бюджет | C31: =SUM(D31:K31) -> 261548.6356 | D31: =SUM(D35+D50) -> 24510.5 | E31: 26102.3 | F31: 46247.74145 | G31: =SUM(G35+G50) -> 34564.47723 | H31: 37669.67458 | I31: 34248.94238 | J31: 29102.5 | K31: 29102.5
A32: 21 | B32: областной бюджет | C32: =SUM(D32:K32) -> 12500.5 | D32: 1214.7 | E32: 3659.9 | F32: 975.1 | G32: 963.5 | H32: 954.3 | I32: 2873.2 | J32: 933.4 | K32: 926.4
A33: 22 | B33: 1. Капитальные вложения
A34: 23 | B34: Всего по направлению «Капитальные вложения» всего, в том числе | C34: =SUM(D34:K34) -> 15605.1 | D34: =SUM(D35+D36) -> 3536.4 | E34: =SUM(E35+E36) -> 3674.7 | F34: =SUM(F35) -> 4819 | G34: 3575 | H34: 0 | I34: 0 | J34: 0 | K34: 0 | L34: Х
A35: 24 | B35: местный бюджет | C35: =SUM(D35:K35) -> 11076.7 | D35: =SUM(D46) -> 2321.7 | E35: =SUM(E46) -> 361 | F35: =SUM(F46) -> 4819 | G35: =SUM(G39+G42) -> 3575 | H35: 0 | I35: 0 | J35: 0 | K35: =SUM(K46) -> 0
A36: 25 | B36: областной бюджет | C36: =SUM(D36:K36) -> 4528.4 | D36: =SUM(D43) -> 1214.7 | E36: =SUM(E43) -> 3313.7 | F36: 0 | G36: =SUM(G43) -> 0 | H36: 0 | I36: 0 | J36: 0 | K36: =SUM(K43) -> 0
A37: 26 | B37: 1.1. Бюджетные инвестиции в объекты капитального строительства
A38: 27 | B38: Бюджетные инвестиции в объекты капитального строительства всего, в том числе | C38: 0 | D38: 0 | E38: 0 | F38: 0 | G38: 0 | H38: 0 | I38: 0 | J38: 0 | K38: 0 | L38: Х
A39: 28 | B39: местный бюджет | C39: 0 | D39: 0 | E39: 0 | F39: 0 | G39: 0 | H39: 0 | I39: 0 | J39: 0 | K39: 0
A40: 29 | B40: 1.2. Иные капитальные вложения
A41: 30 | B41: Всего | C41: =SUM(D41:K41) -> 15605.1 | D41: =SUM(D42:D43) -> 3536.4 | E41: =SUM(E42:E43) -> 3674.7 | F41: 4819 | G41: 3575 | H41: 0 | I41: 0 | J41: 0 | K41: =SUM(K42:K43) -> 0 | L41: Х
A42: 31 | B42: местный бюджет | C42: =SUM(D42:K42) -> 11076.7 | D42: =SUM(D46) -> 2321.7 | E42: 361 | F42: 4819 | G42: 3575 | H42: 0 | I42: 0 | J42: 0 | K42: 0
A43: 32 | B43: областной бюджет | C43: =SUM(D43:K43) -> 4528.4 | D43: =SUM(D47) -> 1214.7 | E43: =SUM(E47) -> 3313.7 | F43: 0 | G43: =SUM(G47) -> 0 | H43: 0 | I43: 0 | J43: 0 | K43: =SUM(K47) -> 0
A44: 33 | B44: Мероприятие 1 Благоустройство дворовых территорий Североуральского городского округа
A45: 34 | B45: Всего, из них | C45: =SUM(D45:K45) -> 15605.1 | D45: =D46+D47 -> 3536.4 | E45: =SUM(E46:E47) -> 3674.7 | F45: =SUM(F46) -> 4819 | G45: 3575 | H45: 0 | I45: 0 | J45: 0 | K45: 0 | L45: стр. 4
A46: 35 | B46: местный бюджет | C46: =SUM(D46:K46) -> 11076.7 | D46: 2321.7 | E46: 361 | F46: 4819 | G46: 3575 | H46: 0 | I46: 0 | J46: 0 | K46: 0
A47: 36 | B47: областной бюджет | C47: =SUM(D47:K47) -> 4528.4 | D47: 1214.7 | E47: 3313.7 | F47: 0 | G47: 0 | H47: 0 | I47: 0 | J47: 0 | K47: 0
A48: 37 | B48: 3. Прочие нужды
A49: 38 | B49: Всего по направлению «Прочие нужды», всего, в том числе: | C49: =SUM(D49:K49) -> 258444.0356 | D49: =SUM(D50:D51) -> 22188.8 | E49: 26087.5 | F49: 42403.84145 | G49: 31952.97723 | H49: 38623.97458 | I49: 37122.14238 | J49: 30035.9 | K49: 30028.9 | L49: Х
A50: 39 | B50: местный бюджет | C50: =SUM(D50:K50) -> 250471.9356 | D50: =SUM(D61+D70+D73+D76+D54+D126+D130) -> 22188.8 | E50: =SUM(E61+E70+E73+E76+E54+E126+E130) -> 25741.3 | F50: 41428.74145 | G50: 30989.47723 | H50: 37669.67458 | I50: 34248.94238 | J50: 29102.5 | K50: 29102.5
A51: 40 | B51: областной бюджет | C51: =SUM(D51:K51) -> 7972.1 | D51: =SUM(D77+D127+D131) -> 0 | E51: =SUM(E77+E127+E131) -> 346.2 | F51: 975.1 | G51: 963.5 | H51: 954.3 | I51: 2873.2 | J51: 933.4 | K51: 926.4
A52: 41 | B52: Мероприятие 1 Благоустройство дворовых территорий Североуральского городского округа
A53: 42 | B53: Всего, из них | C53: =SUM(D53:K53) -> 6734.745 | D53: =D54+D55 -> 310.9 | E53: =SUM(E54) -> 436 | F53: 2681 | G53: 500 | H53: 1206.845 | I53: 600 | J53: 500 | K53: 500 | L53: стр. 4
A54: 43 | B54: местный бюджет | C54: =SUM(D54:K54) -> 6734.745 | D54: 310.9 | E54: 436 | F54: 2681 | G54: 500 | H54: 1206.845 | I54: 600 | J54: 500 | K54: 500
A55: 44 | B55: областной бюджет | C55: =SUM(D55:K55) -> 0 | D55: 0 | E55: 0 | F55: 0 | G55: 0 | H55: 0 | I55: 0 | J55: 0 | K55: 0
A56: 45 | B56: Мероприятие 2 Благоустройство парков и скверов в городе Североуральске
A57: 46 | B57: Всего, из них | C57: =SUM(D57:J57) -> 0 | D57: =D58+D59 -> 0 | E57: =SUM(E58) -> 0 | F57: 0 | G57: 0 | H57: 0 | I57: 0 | J57: 0 | K57: 0 | L57: Х
A58: 47 | B58: местный бюджет | C58: =SUM(D58:J58) -> 0 | D58: 0 | E58: 0 | F58: 0 | G58: 0 | H58: =SUM(G58) -> 0 | I58: =SUM(H58) -> 0 | J58: =SUM(I58) -> 0 | K58: =SUM(J58) -> 0
A59: 48 | B59: Мероприятие 3- Уличное освещение
A60: 49 | B60: Всего, в том числе: | C60: =SUM(D60:K60) -> 131010.5328 | D60: =SUM(D61) -> 12001 | E60: 12600 | F60: 18150.6908 | G60: 15955 | H60: 21456.004 | I60: 18847.838 | J60: =SUM(J61) -> 16000 | K60: =SUM(K61) -> 16000 | L60: стр.8. с 2017 года стр. 9
A61: 50 | B61: местный бюджет | C61: =SUM(D61:K61) -> 131010.5328 | D61: =SUM(D64+D67) -> 12001 | E61: 12600 | F61: 18150.6908 | G61: 15955 | H61: 21456.004 | I61: 18847.838 | J61: 16000 | K61: 16000
A62: 51 | B62: - Обеспечение бесперебойной подачи электроэнергии
A63: 52 | B63: Всего: | C63: =SUM(D63:K63) -> 95203.0884 | D63: =SUM(D64) -> 8644.1 | E63: =SUM(E64) -> 8800 | F63: 10660.6908 | G63: 13098.2976 | H63: 15000 | I63: 13000 | J63: 13000 | K63: 13000 | L63: стр.8. с 2017 года стр. 9
A64: 53 | B64: местный бюджет | C64: =SUM(D64:K64) -> 95203.0884 | D64: 8644.1 | E64: 8800 | F64: 10660.6908 | G64: 13098.2976 | H64: 15000 | I64: 13000 | J64: 13000 | K64: 13000
A65: 54 | B65: - Содержание, ремонт и модернизация сетей уличного освещения
A66: 55 | B66: Всего: | C66: =SUM(D66:K66) -> 35807.4444 | D66: =SUM(D67) -> 3356.9 | E66: =SUM(E67) -> 3800 | F66: 7490 | G66: 2856.7024 | H66: 6456.004 | I66: 5847.838 | J66: 3000 | K66: 3000 | L66: стр.8. с 2017 года стр. 9
A67: 56 | B67: местный бюджет | C67: =SUM(D67:K67) -> 35807.4444 | D67: 3356.9 | E67: 3800 | F67: 7490 | G67: 2856.7024 | H67: 6456.004 | I67: 5847.838 | J67: 3000 | K67: 3000
A68: 57 | B68: Мероприятие 4 - Озеленение
A69: 58 | B69: Всего, из них | C69: =SUM(D69:K69) -> 25460.52984 | D69: =SUM(D70) -> 2890.9 | E69: 2148 | F69: 3923.84386 | G69: 3352.35509 | H69: 3175.75066 | I69: 3364.68023 | J69: 3302.5 | K69: 3302.5 | L69: стр.11
A70: 59 | B70: местный бюджет | C70: =SUM(D70:K70) -> 25460.52984 | D70: 2890.9 | E70: 2148 | F70: 3923.84386 | G70: 3352.35509 | H70: 3175.75066 | I70: 3364.68023 | J70: 3302.5 | K70: 3302.5
A71: 60 | B71: Мероприятие 5 - Организация и содержание мест захоронения
A72: 61 | B72: Всего, из них | C72: =SUM(D72:K72) -> 23794.85679 | D72: =SUM(D73) -> 2263.1 | E72: 2306.9 | F72: 3619.44212 | G72: 2961.65639 | H72: 3181.67 | I72: 3462.08828 | J72: 3000 | K72: 3000 | L72: стр.16
A73: 62 | B73: местный бюджет | C73: =SUM(D73:K73) -> 23794.85679 | D73: 2263.1 | E73: 2306.9 | F73: 3619.44212 | G73: 2961.65639 | H73: 3181.67 | I73: 3462.08828 | J73: 3000 | K73: =SUM(J73) -> 3000
A74: 63 | B74: Мероприятие 6 - Прочие мероприятия по благоустройству Североуральского городского округа
A75: 64 | B75: Всего, в том числе: | C75: =SUM(D75:K75) -> 62025.52121 | D75: =SUM(D76:D77) -> 4722.9 | E75: =SUM(E76:E77) -> 8596.6 | F75: 12256.96467 | G75: 8014.41575 | H75: 8129.80492 | I75: 7704.83587 | J75: 6300 | K75: 6300 | L75: стр. 5, 5.1., 5.2, 5.3, 6, 11, 13, 14, 15, 17, 17.1
A76: 65 | B76: местный бюджет | C76: =SUM(D76:K76) -> 61679.32121 | D76: =SUM(D80+D83+D90+D93+D99+D96+D102+D108+D105+D86+D111+D114) -> 4722.9 | E76: =SUM(E80+E83+E90+E93+E99+E96+E102+E108+E105+E86+E111+E114) -> 8250.4 | F76: =SUM(F80+F83+F90+F93+F99+F96+F102+F108+F105+F86+F111+F114) -> 12256.96467 | G76: =SUM(G80+G83+G90+G93+G99+G96+G102+G108+G105+G86+G111+G114) -> 8014.41575 | H76: =SUM(H80+H83+H90+H93+H99+H96+H102+H108+H105+H86+H111+H114+H117+H120) -> 8129.80492 | I76: =SUM(I80+I83+I90+I93+I99+I96+I102+I108+I105+I86+I111+I114+I117+I120+I123) -> 7704.83587 | J76: =SUM(J80+J83+J90+J93+J99+J96+J102+J108+J105+J86+J111+J114+J117+J120) -> 6300 | K76: =SUM(K80+K83+K90+K93+K99+K96+K102+K108+K105+K86+K111+K114+K117+K120) -> 6300
A77: 66 | B77: областной бюджет | C77: =SUM(D77:K77) -> 346.2 | D77: =SUM(D87) -> 0 | E77: =SUM(E87) -> 346.2 | F77: 0 | G77: 0 | H77: 0 | I77: 0 | J77: 0 | K77: 0
A78: =SUM(A77+1) -> 67 | B78: - Содержание памятников
A79: 68 | B79: Всего: | C79: =SUM(D79:K79) -> 3781.69151 | D79: =SUM(D80) -> 369.2 | E79: 404.9 | F79: 384.30006 | G79: 466.45882 | H79: 500 | I79: 656.83263 | J79: 500 | K79: 500 | L79: стр. 17
A80: 69 | B80: местный бюджет | C80: =SUM(D80:K80) -> 3781.69151 | D80: 369.2 | E80: 404.9 | F80: 384.30006 | G80: 466.45882 | H80: 500 | I80: 656.83263 | J80: 500 | K80: 500
A81: 70 | B81: - Уход за объектами благоустройства
A82: 71 | B82: Всего: | C82: =SUM(C83) -> 10052.84033 | D82: =SUM(D83) -> 1098.7 | E82: =SUM(E83) -> 976.1 | F82: 999.8138 | G82: 1147.68593 | H82: 1312.24992 | I82: 1718.29068 | J82: 1400 | K82: 1400 | L82: стр. 5
A83: 72 | B83: местный бюджет | C83: =SUM(D83:K83) -> 10052.84033 | D83: 1098.7 | E83: 976.1 | F83: 999.8138 | G83: 1147.68593 | H83: 1312.24992 | I83: 1718.29068 | J83: 1400 | K83: 1400
A84: 73 | B84: - Регулирование численности безнадзорных животных
A85: 74 | B85: Всего: | C85: =SUM(D85:J85) -> 1677.2 | D85: =SUM(D86:D87) -> 500 | E85: =SUM(E86:E87) -> 1177.2 | F85: 0 | G85: 0 | H85: 0 | I85: 0 | J85: 0 | K85: =SUM(K86:K87) -> 0 | L85: стр. 13
A86: 75 | B86: местный бюджет | C86: =SUM(D86:J86) -> 1331 | D86: 500 | E86: 831 | F86: 0 | G86: 0 | H86: 0 | I86: =SUM(H86) -> 0 | J86: =SUM(I86) -> 0 | K86: =SUM(J86) -> 0
A87: 76 | B87: областной бюджет | C87: =SUM(D87:K87) -> 346.2 | D87: 0 | E87: 346.2 | F87: 0 | G87: 0 | H87: 0 | I87: 0 | J87: 0 | K87: 0
A88: 77 | B88: - Содержание биоямы (скотомогильник)
A89: 78 | B89: Всего: | C89: =SUM(C90) -> 713.66913 | D89: =SUM(D90) -> 116.1 | E89: =SUM(E90) -> 69.3 | F89: 77.02912 | G89: 74.75306 | H89: 80 | I89: 96.48695 | J89: 100 | K89: 100 | L89: стр.15
A90: 79 | B90: местный бюджет | C90: =SUM(D90:K90) -> 713.66913 | D90: 116.1 | E90: 69.3 | F90: 77.02912 | G90: 74.75306 | H90: 80 | I90: 96.48695 | J90: 100 | K90: 100
A91: 80 | B91: - Обустройство и эксплуатация новогодних городков
A92: 81 | B92: Всего: | C92: =SUM(C93) -> 25289.4842 | D92: =SUM(D93) -> 1685.5 | E92: =SUM(E93) -> 2669.2 | F92: 2900 | G92: 3120 | H92: 3820 | I92: 3994.7842 | J92: 3550 | K92: 3550 | L92: стр.5
A93: 82 | B93: местный бюджет | C93: =SUM(D93:K93) -> 25289.4842 | D93: 1685.5 | E93: 2669.2 | F93: 2900 | G93: 3120 | H93: 3820 | I93: 3994.7842 | J93: 3550 | K93: 3550
A94: 83 | B94: - Приобретение декоративного освещения для улиц города Североуральска, ремонт светодиодных консолей
A95: 84 | B95: Всего: | C95: =SUM(C96) -> 4683.56681 | D95: =SUM(D96) -> 773.4 | E95: =SUM(E96) -> 1701 | F95: 0 | G95: 560 | H95: 158 | I95: 491.16681 | J95: 500 | K95: 500 | L95: стр.5
A96: 85 | B96: местный бюджет | C96: =SUM(D96:K96) -> 4683.56681 | D96: 773.4 | E96: 1701 | F96: 0 | G96: 560 | H96: 158 | I96: 491.16681 | J96: 500 | K96: =SUM(J96) -> 500
A97: 86 | B97: - Акарицидная обработка общественных мест
A98: 87 | B98: Всего: | C98: =SUM(C99) -> 815.2899 | D98: =SUM(D99) -> 92 | E98: =SUM(E99) -> 99.9 | F98: 99.9899 | G98: 45 | H98: 95.4 | I98: 83 | J98: 150 | K98: 150 | L98: стр.14
A99: 88 | B99: местный бюджет | C99: =SUM(D99:K99) -> 815.2899 | D99: 92 | E99: 99.9 | F99: 99.9899 | G99: 45 | H99: 95.4 | I99: 83 | J99: 150 | K99: 150
A100: 89 | B100: - Приобретение грунта плодородного (земли садовой)
A101: 90 | B101: Всего: | C101: =SUM(C102) -> 537 | D101: =SUM(D102) -> 88 | E101: =SUM(E102) -> 0 | F101: 150 | G101: 99 | H101: 0 | I101: 0 | J101: 100 | K101: 100 | L101: стр.11
A102: 91 | B102: местный бюджет | C102: =SUM(D102:K102) -> 537 | D102: 88 | E102: 0 | F102: 150 | G102: 99 | H102: 0 | I102: 0 | J102: 100 | K102: 100
A103: 92 | B103: - Приобретение и установка металлических урн и скамеек
A104: 93 | B104: Всего: | C104: =SUM(D104:K104) -> 1710.25802 | D104: =SUM(D105) -> 0 | E104: =SUM(E105) -> 0 | F104: 1710.25802 | G104: 0 | H104: 0 | I104: 0 | J104: 0 | K104: 0 | L104: стр.6
A105: 94 | B105: местный бюджет | C105: =SUM(D105:K105) -> 1710.25802 | D105: 0 | E105: 0 | F105: 1710.25802 | G105: 0 | H105: 0 | I105: 0 | J105: =SUM(I105) -> 0 | K105: =SUM(J105) -> 0
A106: 95 | B106: - Благоустройство мест общего пользования территории Североуральского городского округа
A107: 96 | B107: Всего: | C107: =SUM(D107:K107) -> 9651.76771 | D107: =SUM(D108) -> 0 | E107: =SUM(E108) -> 1499 | F107: 5935.57377 | G107: 2093.46794 | H107: 33 | I107: 90.726 | J107: 0 | K107: 0 | L107: стр.5
A108: 97 | B108: местный бюджет | C108: =SUM(D108:K108) -> 9651.76771 | D108: 0 | E108: 1499 | F108: 5935.57377 | G108: 2093.46794 | H108: 33 | I108: 90.726 | J108: 0 | K108: =SUM(J108) -> 0
A109: 98 | B109: - Обустройство источника нецентрализованного водоснабжения в п. Сосьва
A110: 99 | B110: Всего: | C110: =SUM(D110:K110) -> 58.05 | D110: =SUM(D111) -> 0 | E110: =SUM(E111) -> 0 | F110: 0 | G110: 58.05 | H110: 0 | I110: 0 | J110: 0 | K110: 0 | L110: стр.5
A111: 100 | B111: местный бюджет | C111: =SUM(D111:K111) -> 58.05 | D111: 0 | E111: 0 | F111: 0 | G111: 58.05 | H111: 0 | I111: 0 | J111: =SUM(I111) -> 0 | K111: =SUM(J111) -> 0
A112: 101 | B112: - Разработка проектно-сметной документации и проведение ценовой экспертизы скверов, парков и аллей Североуральского городского округа
A113: 102 | B113: Всего: | C113: =SUM(D113:K113) -> 733.155 | D113: =SUM(D114) -> 0 | E113: =SUM(E114) -> 0 | F113: 0 | G113: 350 | H113: 383.155 | I113: 0 | J113: 0 | K113: 0 | L113: стр.5.1.
A114: 103 | B114: местный бюджет | C114: =SUM(D114:K114) -> 733.155 | D114: 0 | E114: 0 | F114: 0 | G114: 350 | H114: 383.155 | I114: 0 | J114: =SUM(I114) -> 0 | K114: =SUM(J114) -> 0
A115: 104 | B115: - Приобретение, установка, ремонт остановочных комплексов, изготовление и размещение информационно-навигационных материалов на остановочных комплексах
A116: 105 | B116: Всего: | C116: =SUM(D116:K116) -> 2067.345 | D116: =SUM(D117) -> 0 | E116: =SUM(E117) -> 0 | F116: 0 | G116: 0 | H116: 1500 | I116: 567.345 | J116: 0 | K116: 0 | L116: стр.5.2.
A117: 106 | B117: местный бюджет | C117: =SUM(D117:K117) -> 2067.345 | D117: 0 | E117: 0 | F117: 0 | G117: 0 | H117: 1500 | I117: 567.345 | J117: 0 | K117: =SUM(J117) -> 0
A118: 107 | B118: - Изготовление и установка информационных стендов у здания Администрации Североуральского городского округа
A119: 108 | B119: Всего: | C119: =SUM(D119:K119) -> 248 | D119: =SUM(D120) -> 0 | E119: =SUM(E120) -> 0 | F119: 0 | G119: 0 | H119: 248 | I119: 0 | J119: 0 | K119: 0 | L119: стр.5.3.
A120: 109 | B120: местный бюджет | C120: =SUM(D120:K120) -> 248 | D120: 0 | E120: 0 | F120: 0 | G120: 0 | H120: 248 | I120: 0 | J120: =SUM(I120) -> 0 | K120: =SUM(J120) -> 0
A121: 110 | B121: - Уборка и транспортировка трупов безнадзорных животных, погибших при различных обстоятельствах, в соответствии с ветеренарно-санитарными правилами по сбору, утилизации и уничтожению биологических отходов на территории Североуральского городского округа
A122: 111 | B122: Всего: | C122: =SUM(D122:K122) -> 6.2036 | D122: =SUM(D123) -> 0 | E122: =SUM(E123) -> 0 | F122: 0 | G122: 0 | H122: 0 | I122: 6.2036 | J122: 0 | K122: 0 | L122: стр. 17.1
A123: 112 | B123: местный бюджет | C123: =SUM(D123:K123) -> 6.2036 | D123: 0 | E123: 0 | F123: 0 | G123: 0 | H123: 0 | I123: 6.2036 | J123: 0 | K123: 0
A124: 113 | B124: Мероприятие 7 - Регулирование численности собак без владельцев
A125: 114 | B125: Всего, из них | C125: =SUM(D125:K125) -> 7467.85 | D125: =SUM(D126:D127) -> 0 | E125: =SUM(E126:E127) -> 0 | F125: 1771.9 | G125: 1169.55 | H125: 1473.9 | I125: 1192.7 | J125: 933.4 | K125: 926.4 | L125: стр.13
A126: 115 | B126: местный бюджет | C126: =SUM(D126:K126) -> 1772.45 | D126: 0 | E126: 0 | F126: 796.8 | G126: 206.05 | H126: 519.6 | I126: 250 | J126: 0 | K126: 0
A127: 116 | B127: областной бюджет | C127: =SUM(D127:K127) -> 5695.4 | D127: 0 | E127: 0 | F127: 975.1 | G127: 963.5 | H127: 954.3 | I127: 942.7 | J127: 933.4 | K127: 926.4
A128: 117 | B128: Мероприятие 8 - Обустройство контейнерных площадок и приобретение контейнеров
A129: 118 | B129: Всего, из них | C129: =SUM(D129:K129) -> 1950 | D129: =SUM(D130:D131) -> 0 | E129: =SUM(E130:E131) -> 0 | F129: 0 | G129: 0 | H129: 0 | I129: 1950 | J129: 0 | K129: 0 | L129: стр.17.2
A130: 119 | B130: местный бюджет | C130: =SUM(D130:K130) -> 19.5 | D130: 0 | E130: 0 | F130: 0 | G130: 0 | H130: 0 | I130: 19.5 | J130: 0 | K130: 0
A131: 120 | B131: областной бюджет | C131: =SUM(D131:K131) -> 1930.5 | D131: 0 | E131: 0 | F131: 0 | G131: 0 | H131: 0 | I131: 1930.5 | J131: 0 | K131: 0
A132: 121 | B132: Подпрограмма 2: Муниципальная программа по энергосбережению и повышению энергетической эффективности объектов Североуральского городского округа
A133: 122 | B133: Всего по подпрограмме 2, в том числе | C133: =SUM(D133:K133) -> 115052.9593 | D133: =SUM(D134:D135) -> 9165.5 | E133: 2961.6 | F133: 15455.86781 | G133: 16404.34197 | H133: 20418.5 | I133: 49147.14957 | J133: 750 | K133: 750 | L133: Х
A134: 123 | B134: местный бюджет | C134: =SUM(D134:K134) -> 105114.8593 | D134: =SUM(D138+D188) -> 2821.1 | E134: =SUM(E138+E188) -> 2961.6 | F134: =F138+F188 -> 15455.86781 | G134: =SUM(G138+G188) -> 16404.34197 | H134: 20418.5 | I134: 45553.44957 | J134: 750 | K134: 750
A135: 124 | B135: областной бюджет | C135: =SUM(D135:K135) -> 9938.1 | D135: =SUM(D139+D189) -> 6344.4 | E135: =SUM(E139+E189) -> 0 | F135: =SUM(F139+F189) -> 0 | G135: 0 | H135: 0 | I135: 3593.7 | J135: 0 | K135: 0
A136: 125 | B136: 1. Капитальные вложения
A137: 126 | B137: Всего по направлению «Капитальные вложения», всего, в том числе | C137: =SUM(D137:K137) -> 52176.2227 | D137: =SUM(D138:D139) -> 4173.6 | E137: 1420 | F137: 14122.6092 | G137: 2804.34197 | H137: 0 | I137: 29655.67153 | J137: 0 | K137: 0 | L137: Х
A138: 127 | B138: местный бюджет | C138: =SUM(D138:K138) -> 45238.1227 | D138: =SUM(D172+D142) -> 829.2 | E138: 1420 | F138: 14122.6092 | G138: 2804.34197 | H138: 0 | I138: =SUM(I172+I142) -> 26061.97153 | J138: 0 | K138: 0
A139: 128 | B139: областной бюджет | C139: =SUM(D139:K139) -> 6938.1 | D139: 3344.4 | E139: 0 | F139: 0 | G139: 0 | H139: 0 | I139: 3593.7 | J139: 0 | K139: 0
A140: 129 | B140: 1.1. Бюджетные инвестиции в объекты капитального строительства
A141: 130 | B141: Бюджетные инвестиции в объекты капитального строительства всего, в том числе | C141: =SUM(D141:J141) -> 41325.95117 | D141: =SUM(D142:D143) -> 0 | E141: =SUM(E142:E143) -> 0 | F141: 14122.6092 | G141: 2804.34197 | H141: 0 | I141: 24399 | J141: 0 | K141: 0 | L141: Х
A142: 131 | B142: местный бюджет | C142: =SUM(D142:K142) -> 41325.95117 | D142: =SUM(D146+D158+D161+D165+D168) -> 0 | E142: 0 | F142: 14122.6092 | G142: 2804.34197 | H142: 0 | I142: =SUM(I146+I158+I161+I165+I168) -> 24399 | J142: 0 | K142: 0
A143: 132 | B143: областной бюджет | C143: =SUM(D143:J143) -> 0 | D143: =SUM(D147+D162+D169) -> 0 | E143: =SUM(E147+E162+E169) -> 0 | F143: 0 | G143: 0 | H143: 0 | I143: 0 | J143: 0 | K143: 0
A144: 133 | B144: Мероприятие 3 - Закупка и установка осветительного оборудования с заменой неэффективного на энергосберегающее, в том числе замена ламп накаливания на энергосберегающие, строительство, модернизация системы уличного освещения, проектно-сметные работы, экспертиза проектно-сметной документации
A145: 134 | B145: Всего, из них | C145: =SUM(D145:K145) -> 14458.20066 | D145: =SUM(D146:D147) -> 0 | E145: =SUM(E146:E147) -> 0 | F145: 12330 | G145: 2128.20066 | H145: 0 | I145: 0 | J145: 0 | K145: 0 | L145: стр.28
A146: 135 | B146: местный бюджет | C146: =SUM(D146:K146) -> 14458.20066 | D146: 0 | E146: 0 | F146: =SUM(F154+F150) -> 12330 | G146: =SUM(G154+G150) -> 2128.20066 | H146: 0 | I146: =SUM(H146) -> 0 | J146: 0 | K146: 0
A147: 136 | B147: областной бюджет | C147: =SUM(D147:J147) -> 0 | D147: 0 | E147: 0 | F147: 0 | G147: 0 | H147: 0 | I147: 0 | J147: 0 | K147: 0
A148: 137 | B148: - Разработка ПСД на строительство сетей уличного освещения микрорайона Южный
A149: =SUM(A148+1) -> 138 | B149: Всего: | C149: =SUM(D149:K149) -> 283.20066 | D149: =SUM(D150) -> 0 | E149: 0 | F149: 283.20066 | G149: 0 | H149: 0 | I149: 0 | J149: 0 | K149: 0 | L149: стр.28
A150: 139 | B150: местный бюджет | C150: =SUM(D150:K150) -> 283.20066 | D150: 0 | E150: 0 | F150: 283.20066 | G150: 0 | H150: 0 | I150: =SUM(H150) -> 0 | J150: =SUM(I150) -> 0 | K150: =SUM(J150) -> 0
A151: 140 | B151: областной бюджет | C151: =SUM(D151:J151) -> 0 | D151: 0 | E151: 0 | F151: 0 | G151: 0 | H151: 0 | I151: 0 | J151: 0 | K151: 0
A152: 141 | B152: - Строительство сетей уличного освещения микрорайона Южный
A153: 142 | B153: Всего: | C153: =SUM(D153:K153) -> 14175 | D153: =SUM(D154) -> 0 | E153: 0 | F153: 12046.79934 | G153: 2128.20066 | H153: 0 | I153: 0 | J153: 0 | K153: 0 | L153: стр.28
A154: 143 | B154: местный бюджет | C154: =SUM(D154:K154) -> 14175 | D154: 0 | E154: 0 | F154: 12046.79934 | G154: 2128.20066 | H154: 0 | I154: =SUM(H154) -> 0 | J154: =SUM(I154) -> 0 | K154: =SUM(J154) -> 0
A155: 144 | B155: областной бюджет | C155: =SUM(D155:J155) -> 0 | D155: 0 | E155: 0 | F155: 0 | G155: 0 | H155: 0 | I155: 0 | J155: 0 | K155: 0
A156: 145 | B156: Мероприятие 5 - Разработка, экспертиза проектно-сметной документации на строительство сетей водоснабжения в Североуральском городском округе
A157: 146 | B157: Всего, из них | C157: =SUM(D157:K157) -> 18899 | D157: =SUM(D158) -> 0 | E157: =SUM(E158) -> 0 | F157: 0 | G157: 0 | H157: 0 | I157: 18899 | J157: 0 | K157: 0 | L157: стр.31, введен с 2016 года
A158: 147 | B158: местный бюджет | C158: =SUM(D158:K158) -> 18899 | D158: 0 | E158: 0 | F158: 0 | G158: 0 | H158: =SUM(G158) -> 0 | I158: 18899 | J158: 0 | K158: 0
A159: 148 | B159: Мероприятие 6 - Строительство сетей водоснабжения в Североуральском городском округе
A160: 149 | B160: Всего, из них | C160: =SUM(D160:K160) -> 0 | D160: =SUM(D161:D162) -> 0 | E160: =SUM(E161:E162) -> 0 | F160: 0 | G160: 0 | H160: 0 | I160: 0 | J160: 0 | K160: 0 | L160: стр.32, введен с 2016 года
A161: 150 | B161: местный бюджет | C161: =SUM(D161:K161) -> 0 | D161: 0 | E161: 0 | F161: 0 | G161: 0 | H161: =SUM(G161) -> 0 | I161: 0 | J161: 0 | K161: 0
A162: 151 | B162: областной бюджет | C162: =SUM(D162:J162) -> 0 | D162: 0 | E162: 0 | F162: 0 | G162: 0 | H162: 0 | I162: 0 | J162: 0 | K162: 0
A163: 152 | B163: Мероприятие 7 - Разработка, экспертиза проектно-сметной документации на строительство котельных в Североуральском городском округе
A164: 153 | B164: Всего, из них | C164: =SUM(D164:K164) -> 7968.75051 | D164: =SUM(D165) -> 0 | E164: =SUM(E165) -> 0 | F164: 1792.6092 | G164: 676.14131 | H164: 0 | I164: 5500 | J164: 0 | K164: 0 | L164: стр.33
A165: 154 | B165: местный бюджет | C165: =SUM(D165:K165) -> 7968.75051 | D165: 0 | E165: 0 | F165: 1792.6092 | G165: 676.14131 | H165: 0 | I165: 5500 | J165: 0 | K165: 0
A166: 155 | B166: Мероприятие 8 - Строительство котельных в Североуральском городском округе
A167: 156 | B167: Всего, из них | C167: =SUM(D167:K167) -> 0 | D167: =SUM(D168:D169) -> 0 | E167: =SUM(E168:E169) -> 0 | F167: 0 | G167: 0 | H167: 0 | I167: 0 | J167: 0 | K167: 0 | L167: стр.34, введен с 2016 года
A168: 157 | B168: местный бюджет | C168: =SUM(D168:K168) -> 0 | D168: 0 | E168: 0 | F168: 0 | G168: 0 | H168: 0 | I168: 0 | J168: 0 | K168: 0
A169: 158 | B169: областной бюджет | C169: =SUM(D169:J169) -> 0 | D169: 0 | E169: 0 | F169: 0 | G169: 0 | H169: =SUM(G169) -> 0 | I169: =SUM(H169) -> 0 | J169: =SUM(I169) -> 0 | K169: =SUM(J169) -> 0
A170: 159 | B170: 1.2. Иные капитальные вложения
A171: 160 | B171: Всего, в том числе | C171: =SUM(D171:K171) -> 10850.27153 | D171: =SUM(D172:D173) -> 4173.6 | E171: 1420 | F171: 0 | G171: 0 | H171: 0 | I171: 5256.67153 | J171: 0 | K171: 0 | L171: Х
A172: 161 | B172: местный бюджет | C172: =SUM(D172:K172) -> 3912.17153 | D172: =SUM(D180+D176) -> 829.2 | E172: =SUM(E180) -> 1420 | F172: 0 | G172: 0 | H172: 0 | I172: 1662.97153 | J172: 0 | K172: 0
A173: 162 | B173: областной бюджет | C173: =SUM(D173:K173) -> 6938.1 | D173: =SUM(D181+D177) -> 3344.4 | E173: =SUM(E181) -> 0 | F173: 0 | G173: 0 | H173: 0 | I173: 3593.7 | J173: 0 | K173: 0
A174: 163 | B174: Мероприятие 1- Реконструкция, модернизация водопроводных сетей, сетей системы водоотведения с заменой (без замены) оборудования с более высоким КПД, установка регулируемого привода, реконструкция тепловых сетей, в том числе тепловых пунктов, котельных, капитальный ремонт систем коммунального хозяйства
A175: 164 | B175: Всего, в том числе: | C175: =SUM(D175:K175) -> 3037.4 | D175: =SUM(D176:D177) -> 3037.4 | E175: 0 | F175: 0 | G175: 0 | H175: 0 | I175: 0 | J175: 0 | K175: =SUM(K176:K177) -> 0 | L175: стр.29
A176: 165 | B176: местный бюджет | C176: =SUM(D176:K176) -> 281 | D176: 281 | E176: 0 | F176: 0 | G176: 0 | H176: 0 | I176: 0 | J176: 0 | K176: 0
A177: 166 | B177: областной бюджет | C177: =SUM(D177:K177) -> 2756.4 | D177: 2756.4 | E177: 0 | F177: 0 | G177: 0 | H177: =SUM(G177) -> 0 | I177: =SUM(H177) -> 0 | J177: =SUM(I177) -> 0 | K177: =SUM(J177) -> 0
A178: 167 | B178: Мероприятие 3 - Закупка и установка осветительного оборудования с заменой неэффективного на энергосберегающее, в том числе замена ламп накаливания на энергосберегающие, строительство, модернизация системы уличного освещения, проектно-сметные работы, экспертиза проектно-сметной документации
A179: 168 | B179: Всего, из них | C179: =SUM(C180:C181) -> 7812.87153 | D179: =SUM(D180:D181) -> 1136.2 | E179: =SUM(E180:E181) -> 1420 | F179: 0 | G179: 0 | H179: 0 | I179: 5256.67153 | J179: 0 | K179: =SUM(K180:K181) -> 0 | L179: стр.28
A180: 169 | B180: местный бюджет | C180: =SUM(D180:K180) -> 3631.17153 | D180: 548.2 | E180: 1420 | F180: 0 | G180: 0 | H180: 0 | I180: 1662.97153 | J180: 0 | K180: =SUM(J180) -> 0
A181: 170 | B181: областной бюджет | C181: =SUM(D181:K181) -> 4181.7 | D181: 588 | E181: 0 | F181: 0 | G181: 0 | H181: =SUM(G181) -> 0 | I181: 3593.7 | J181: 0 | K181: 0
A182: 171 | B182: - Модернизация системы уличного освещения
A183: 172 | B183: Всего, из них | C183: =SUM(C184:C185) -> 7812.87153 | D183: =SUM(D184:D185) -> 1136.2 | E183: =SUM(E184:E185) -> 1420 | F183: 0 | G183: 0 | H183: 0 | I183: 5256.67153 | J183: 0 | K183: =SUM(K184:K185) -> 0 | L183: стр.28
A184: 173 | B184: местный бюджет | C184: =SUM(D184:K184) -> 3631.17153 | D184: 548.2 | E184: 1420 | F184: 0 | G184: 0 | H184: 0 | I184: 1662.97153 | J184: 0 | K184: =SUM(J184) -> 0
A185: 174 | B185: областной бюджет | C185: =SUM(D185:K185) -> 4181.7 | D185: 588 | E185: 0 | F185: 0 | G185: 0 | H185: =SUM(G185) -> 0 | I185: 3593.7 | J185: 0 | K185: 0
A186: 175 | B186: 3. Прочие нужды
A187: 176 | B187: Всего по направлению «Прочие нужды», всего, в том числе: | C187: =SUM(C188:C189) -> 62876.73665 | D187: =SUM(D188:D189) -> 4991.9 | E187: =SUM(E188:E189) -> 1541.6 | F187: 1333.25861 | G187: 13600 | H187: 20418.5 | I187: 19491.47804 | J187: 750 | K187: 750 | L187: Х
A188: 177 | B188: местный бюджет | C188: =SUM(D188:K188) -> 59876.73665 | D188: =SUM(D204+D209+D213+D216+D192) -> 1991.9 | E188: 1541.6 | F188: 1333.25861 | G188: 13600 | H188: 20418.5 | I188: 19491.47804 | J188: 750 | K188: 750
A189: 178 | B189: областной бюджет | C189: =SUM(D189:K189) -> 3000 | D189: =SUM(D205+D210+D193) -> 3000 | E189: 0 | F189: 0 | G189: 0 | H189: 0 | I189: 0 | J189: 0 | K189: 0
A190: 179 | B190: Мероприятие 1- Реконструкция, модернизация водопроводных сетей, сетей системы водоотведения с заменой (без замены) оборудования с более высоким КПД, установка регулируемого привода, реконструкция тепловых сетей, в том числе тепловых пунктов, котельных, капитальный ремонт систем коммунального хозяйства
A191: 180 | B191: Всего, в том числе: | C191: =SUM(D191:K191) -> 51705.97804 | D191: =SUM(D192:D193) -> 0 | E191: 0 | F191: 0 | G191: 13000 | H191: 19775.5 | I191: 18930.47804 | J191: 0 | K191: =SUM(K192:K193) -> 0 | L191: стр.29
A192: 181 | B192: местный бюджет | C192: =SUM(D192:K192) -> 51705.97804 | D192: 0 | E192: 0 | F192: 0 | G192: 13000 | H192: 19775.5 | I192: 18930.47804 | J192: 0 | K192: 0
A193: 182 | B193: областной бюджет | C193: =SUM(D193:J193) -> 0 | D193: 0 | E193: 0 | F193: 0 | G193: 0 | H193: =SUM(G193) -> 0 | I193: =SUM(H193) -> 0 | J193: =SUM(I193) -> 0 | K193: =SUM(J193) -> 0
A194: 183 | B194: - Мероприятия в системе коммунального хозяйства с заменой оборудования в целях повышения энергетической эффективности
A195: 184 | B195: Всего: | C195: =SUM(C196:C197) -> 51705.97804 | D195: 0 | E195: 0 | F195: 0 | G195: 13000 | H195: 19775.5 | I195: 18930.47804 | J195: 0 | K195: 0 | L195: стр.29
A196: 185 | B196: местный бюджет | C196: =SUM(D196:K196) -> 51705.97804 | D196: 0 | E196: 0 | F196: 0 | G196: 13000 | H196: 19775.5 | I196: 18930.47804 | J196: 0 | K196: 0
A197: 186 | B197: областной бюджет | C197: =SUM(D197:K197) -> 0 | D197: 0 | E197: 0 | F197: 0 | G197: 0 | H197: 0 | I197: 0 | J197: 0 | K197: 0
A198: 187 | B198: - Техническое перевооружение ОПО-Система теплоснабжения Североуральского городского округа рег. №А54-06139-0001. Техническое перевооружение системы газоснабжения, автоматизации котла ПТВМ-50 (котел №2) рег. № 15001
A199: 188 | B199: Всего: | C199: =SUM(C200:C201) -> 0 | D199: 0 | E199: 0 | F199: 0 | G199: 0 | H199: 0 | I199: 0 | J199: 0 | K199: 0 | L199: стр.29
A200: 189 | B200: местный бюджет | C200: =SUM(D200:K200) -> 0 | D200: 0 | E200: 0 | F200: 0 | G200: 0 | H200: 0 | I200: 0 | J200: 0 | K200: 0
A201: 190 | B201: областной бюджет | C201: =SUM(D201:K201) -> 0 | D201: 0 | E201: 0 | F201: 0 | G201: 0 | H201: 0 | I201: 0 | J201: 0 | K201: 0
A202: 191 | B202: Мероприятие 2 - Оснащение зданий (строений, сооружений), находящихся в муниципальной собственности, многоквартирных жилых домов, жилых помещений, квартир приборами учета используемых энергетических ресурсов, в том числе разработка проектно-сметной документации
... 287 more rows

Sheet Лист2

Sheet Лист3
